[Event "Late-Titled-Tuesday-Blitz-December-26-2023"]
[Site "Chess.com"]
[Date "2023.12.26"]
[Round "2"]
[White "AungTZ"]
[Black "Balla_Tamas"]
[Result "0-1"]
[WhiteElo "2092"]
[BlackElo "2445"]
[TimeControl "180+1"]
[EndTime "14:19:02 PST"]
[Termination "Balla_Tamas won by resignation"]

1. e4 {[%clk 0:02:59.4]} 1... c5 {[%clk 0:03:00.3]} 2. Nf3 {[%clk 0:02:59.3]}
2... Nc6 {[%clk 0:03:00.6]} 3. Bb5 {[%clk 0:02:59.1]} 3... Nf6 {[%clk
0:03:00.5]} 4. e5 {[%clk 0:02:58.5]} 4... Nd5 {[%clk 0:03:00.8]} 5. Nc3 {[%clk
0:02:59.4]} 5... Nc7 {[%clk 0:02:57.2]} 6. Bxc6 {[%clk 0:02:59.1]} 6... dxc6
{[%clk 0:02:56.6]} 7. h3 {[%clk 0:02:59.2]} 7... h6 {[%clk 0:02:51.5]} 8. O-O
{[%clk 0:02:59.1]} 8... Bf5 {[%clk 0:02:51.6]} 9. Re1 {[%clk 0:02:59]} 9... e6
{[%clk 0:02:51.6]} 10. d3 {[%clk 0:02:57.8]} 10... Be7 {[%clk 0:02:51.4]} 11.
Ne4 {[%clk 0:02:57.7]} 11... O-O {[%clk 0:02:48.2]} 12. a4 {[%clk 0:02:57.5]}
12... a5 {[%clk 0:02:46.9]} 13. Bf4 {[%clk 0:02:52.2]} 13... b6 {[%clk
0:02:45.7]} 14. g4 {[%clk 0:02:51.9]} 14... Bh7 {[%clk 0:02:43.1]} 15. Bg3
{[%clk 0:02:46.7]} 15... Nd5 {[%clk 0:02:32.1]} 16. Nfd2 {[%clk 0:02:41.9]}
16... Kh8 {[%clk 0:02:24.2]} 17. Nc4 {[%clk 0:02:41.3]} 17... f5 {[%clk
0:02:10.2]} 18. exf6 {[%clk 0:02:38.4]} 18... Bxf6 {[%clk 0:02:09.9]} 19. Nxf6
{[%clk 0:02:36.8]} 19... Qxf6 {[%clk 0:02:10.8]} 20. Ne5 {[%clk 0:02:28.4]}
20... Nf4 {[%clk 0:01:57.9]} 21. Kh2 {[%clk 0:02:21.6]} 21... Rad8 {[%clk
0:01:08.6]} 22. Qd2 {[%clk 0:02:01.7]} 22... Ng6 {[%clk 0:00:55.2]} 23. Nxc6
{[%clk 0:01:42.5]} 23... Rd5 {[%clk 0:00:54.6]} 24. Qc3 {[%clk 0:01:26.4]} 24...
Qf3 {[%clk 0:00:28.2]} 25. Ne5 {[%clk 0:01:10.3]} 25... Nxe5 {[%clk 0:00:21.5]}
26. Rxe5 {[%clk 0:01:10.2]} 26... h5 {[%clk 0:00:20.4]} 27. Rxh5 {[%clk
0:01:02.2]} 27... Rxh5 {[%clk 0:00:20.3]} 28. gxh5 {[%clk 0:01:02.4]} 28... Qxh5
{[%clk 0:00:21.1]} 29. Qe5 {[%clk 0:00:57.7]} 29... Bf5 {[%clk 0:00:20.6]} 30.
h4 {[%clk 0:00:56.8]} 30... Qg4 {[%clk 0:00:21]} 31. Qf4 {[%clk 0:00:53.4]}
31... Qh3+ {[%clk 0:00:21.2]} 32. Kg1 {[%clk 0:00:53.4]} 32... Kg8 {[%clk
0:00:21.5]} 33. Qg5 {[%clk 0:00:53.1]} 33... Bg4 {[%clk 0:00:15.5]} 34. Be5
{[%clk 0:00:37.3]} 34... Rf7 {[%clk 0:00:15.7]} 35. Qd8+ {[%clk 0:00:36.8]}
35... Kh7 {[%clk 0:00:15.8]} 36. Qa8 {[%clk 0:00:35.1]} 36... Bf3 {[%clk
0:00:15.9]} 37. Qxf3 {[%clk 0:00:34.9]} 37... Qxf3 {[%clk 0:00:15.4]} 38. Bg3
{[%clk 0:00:34.8]} 38... e5 {[%clk 0:00:12.2]} 39. Re1 {[%clk 0:00:34]} 39... e4
{[%clk 0:00:10.9]} 40. Rxe4 {[%clk 0:00:33.8]} 40... Qd1+ {[%clk 0:00:10.6]} 41.
Kh2 {[%clk 0:00:33.8]} 41... Qxc2 {[%clk 0:00:11.1]} 42. Kg2 {[%clk 0:00:32.6]}
42... Qxd3 {[%clk 0:00:10.7]} 43. Re5 {[%clk 0:00:32.8]} 43... Qc4 {[%clk
0:00:07.9]} 44. Rh5+ {[%clk 0:00:30.9]} 44... Kg8 {[%clk 0:00:07.9]} 45. Rg5
{[%clk 0:00:30.4]} 45... Qe4+ {[%clk 0:00:08.2]} 46. Kh2 {[%clk 0:00:30.3]}
46... Qxa4 {[%clk 0:00:08.8]} 47. h5 {[%clk 0:00:30.1]} 47... Qd4 {[%clk
0:00:08.9]} 48. h6 {[%clk 0:00:30]} 48... Rxf2+ {[%clk 0:00:07.1]} 49. Kh3
{[%clk 0:00:26.7]} 49... Rf7 {[%clk 0:00:05.8]} 50. Be5 {[%clk 0:00:22.5]} 50...
Qe3+ {[%clk 0:00:05]} 51. Kh4 {[%clk 0:00:20.9]} 51... Rf4+ {[%clk 0:00:04.6]}
52. Kh5 {[%clk 0:00:19.7]} 52... Qf3+ {[%clk 0:00:04.3]} 53. Kg6 {[%clk
0:00:19.7]} 53... Rf6+ {[%clk 0:00:04.7]} 54. Bxf6 {[%clk 0:00:19.6]} 54...
Qxf6+ {[%clk 0:00:05.4]} 55. Kh5 {[%clk 0:00:20.4]} 55... Qxh6+ {[%clk 0:00:06]}
56. Kg4 {[%clk 0:00:20.8]} 56... Qe6+ {[%clk 0:00:06.1]} 57. Kf4 {[%clk
0:00:20.6]} 57... Qf6+ {[%clk 0:00:06.2]} 58. Rf5 {[%clk 0:00:20.6]} 58... Qxb2
{[%clk 0:00:05.3]} 59. Rd5 {[%clk 0:00:20.2]} 59... Qd4+ {[%clk 0:00:05.4]} 60.
Rxd4 {[%clk 0:00:20]} 60... cxd4 {[%clk 0:00:06.3]} 61. Ke4 {[%clk 0:00:20.6]}
61... Kf7 {[%clk 0:00:06.3]} 62. Kd3 {[%clk 0:00:21.5]} 62... Kf6 {[%clk
0:00:07]} 63. Kxd4 {[%clk 0:00:22.3]} 63... Kf5 {[%clk 0:00:07.4]} 64. Kc4
{[%clk 0:00:23.2]} 64... Kf4 {[%clk 0:00:08]} 65. Kb5 {[%clk 0:00:24.1]} 65...
g5 {[%clk 0:00:08.6]} 66. Kxb6 {[%clk 0:00:24.2]} 66... g4 {[%clk 0:00:09.4]}
67. Kxa5 {[%clk 0:00:25]} 67... g3 {[%clk 0:00:10.3]} 68. Kb6 {[%clk 0:00:25.2]}
68... g2 {[%clk 0:00:11.2]} 69. Kc7 {[%clk 0:00:25.8]} 69... g1=Q {[%clk
0:00:12.1]} 0-1

[Event "Late-Titled-Tuesday-Blitz-December-26-2023"]
[Site "Chess.com"]
[Date "2023.12.26"]
[Round "2"]
[White "CheckThis4"]
[Black "SCIM"]
[Result "1-0"]
[WhiteElo "2727"]
[BlackElo "2516"]
[TimeControl "180+1"]
[EndTime "14:19:15 PST"]
[Termination "CheckThis4 won on time"]

1. e4 {[%clk 0:03:00.9]} 1... c5 {[%clk 0:02:56.7]} 2. Nf3 {[%clk 0:02:59.7]}
2... e6 {[%clk 0:02:56.7]} 3. c3 {[%clk 0:02:57.9]} 3... d5 {[%clk 0:02:55.6]}
4. exd5 {[%clk 0:02:56.7]} 4... Qxd5 {[%clk 0:02:56.5]} 5. d4 {[%clk 0:02:55.6]}
5... Nf6 {[%clk 0:02:55.9]} 6. Na3 {[%clk 0:02:49.4]} 6... Qd8 {[%clk
0:02:55.3]} 7. Nc4 {[%clk 0:02:42.7]} 7... cxd4 {[%clk 0:02:52.7]} 8. Nxd4
{[%clk 0:02:42.8]} 8... a6 {[%clk 0:02:45.9]} 9. Be2 {[%clk 0:02:40.7]} 9... Be7
{[%clk 0:02:42]} 10. O-O {[%clk 0:02:39.8]} 10... O-O {[%clk 0:02:41.9]} 11. Bg5
{[%clk 0:02:30.5]} 11... Qc7 {[%clk 0:02:33.3]} 12. Nf3 {[%clk 0:02:13]} 12...
b5 {[%clk 0:02:25]} 13. Nce5 {[%clk 0:02:08.2]} 13... Bb7 {[%clk 0:02:24.8]} 14.
a4 {[%clk 0:02:05.9]} 14... Nc6 {[%clk 0:02:06.4]} 15. Nxc6 {[%clk 0:01:51.4]}
15... Qxc6 {[%clk 0:02:07.3]} 16. axb5 {[%clk 0:01:47]} 16... axb5 {[%clk
0:02:06.2]} 17. Rxa8 {[%clk 0:01:43.4]} 17... Rxa8 {[%clk 0:02:05]} 18. Qb3
{[%clk 0:01:38.5]} 18... Ra5 {[%clk 0:01:44.6]} 19. Rd1 {[%clk 0:01:37.6]} 19...
b4 {[%clk 0:01:36.4]} 20. Bxf6 {[%clk 0:01:31.3]} 20... gxf6 {[%clk 0:01:33.8]}
21. cxb4 {[%clk 0:01:24.8]} 21... Rh5 {[%clk 0:01:23.3]} 22. b5 {[%clk 0:01:21]}
22... Qe4 {[%clk 0:01:20.4]} 23. Qe3 {[%clk 0:01:08.5]} 23... Qxe3 {[%clk
0:00:58.6]} 24. fxe3 {[%clk 0:01:09.4]} 24... Bc5 {[%clk 0:00:54.2]} 25. Kf2
{[%clk 0:01:08.8]} 25... Bd5 {[%clk 0:00:50]} 26. Rc1 {[%clk 0:00:51.9]} 26...
Bb6 {[%clk 0:00:48.4]} 27. Rc8+ {[%clk 0:00:50.4]} 27... Kg7 {[%clk 0:00:47.4]}
28. Rb8 {[%clk 0:00:50.1]} 28... Ba7 {[%clk 0:00:46.9]} 29. Rd8 {[%clk
0:00:41.8]} 29... Bxf3 {[%clk 0:00:45.9]} 30. Kxf3 {[%clk 0:00:28.7]} 30... Rf5+
{[%clk 0:00:44.5]} 31. Ke4 {[%clk 0:00:20.5]} 31... Re5+ {[%clk 0:00:43.8]} 32.
Kd3 {[%clk 0:00:18.3]} 32... Rxe3+ {[%clk 0:00:42.1]} 33. Kd2 {[%clk 0:00:18.3]}
33... Re5 {[%clk 0:00:35.3]} 34. Rd7 {[%clk 0:00:18.2]} 34... Be3+ {[%clk
0:00:29.9]} 35. Kd3 {[%clk 0:00:16.2]} 35... f5 {[%clk 0:00:29.3]} 36. Bh5
{[%clk 0:00:12.2]} 36... f4 {[%clk 0:00:16.6]} 37. Bxf7 {[%clk 0:00:12]} 37...
Rxb5 {[%clk 0:00:12.4]} 38. Bxe6+ {[%clk 0:00:11.7]} 38... Kf6 {[%clk
0:00:12.4]} 39. Bd5 {[%clk 0:00:08.8]} 39... Rxb2 {[%clk 0:00:11.4]} 40. Rxh7
{[%clk 0:00:08.4]} 40... Ke5 {[%clk 0:00:11.3]} 41. Bf3 {[%clk 0:00:08.2]} 41...
Rd2+ {[%clk 0:00:09.6]} 42. Kc4 {[%clk 0:00:08.3]} 42... Rd4+ {[%clk 0:00:08.7]}
43. Kc3 {[%clk 0:00:08]} 43... Rd6 {[%clk 0:00:08.5]} 44. Rh5+ {[%clk
0:00:08.1]} 44... Kf6 {[%clk 0:00:08.1]} 45. Kc4 {[%clk 0:00:08.6]} 45... Rd4+
{[%clk 0:00:07.5]} 46. Kc3 {[%clk 0:00:08.3]} 46... Rd6 {[%clk 0:00:06.3]} 47.
h3 {[%clk 0:00:08.6]} 47... Kg6 {[%clk 0:00:06]} 48. Rb5 {[%clk 0:00:07.7]}
48... Rf6 {[%clk 0:00:05.3]} 49. Kd3 {[%clk 0:00:07.2]} 49... Rd6+ {[%clk
0:00:04.8]} 50. Ke4 {[%clk 0:00:07]} 50... Re6+ {[%clk 0:00:04.7]} 51. Kd5
{[%clk 0:00:07.4]} 51... Rf6 {[%clk 0:00:04.9]} 52. Rb7 {[%clk 0:00:07.3]} 52...
Rf5+ {[%clk 0:00:04]} 53. Ke6 {[%clk 0:00:07.6]} 53... Rf6+ {[%clk 0:00:04.3]}
54. Ke5 {[%clk 0:00:07.7]} 54... Rf5+ {[%clk 0:00:04.3]} 55. Ke4 {[%clk
0:00:08.1]} 55... Rf6 {[%clk 0:00:04.1]} 56. Rd7 {[%clk 0:00:08]} 56... Re6+
{[%clk 0:00:04]} 57. Kd5 {[%clk 0:00:08]} 57... Rf6 {[%clk 0:00:04.9]} 58. Be4+
{[%clk 0:00:07.8]} 58... Kg5 {[%clk 0:00:04.8]} 59. Rg7+ {[%clk 0:00:07.4]}
59... Kh4 {[%clk 0:00:04.1]} 60. Rg4+ {[%clk 0:00:07.3]} 60... Kh5 {[%clk
0:00:04.2]} 61. Bf3 {[%clk 0:00:07.8]} 61... Kh6 {[%clk 0:00:03.9]} 62. Ke5
{[%clk 0:00:06.7]} 62... Rb6 {[%clk 0:00:04]} 63. Rg8 {[%clk 0:00:06.5]} 63...
Bd2 {[%clk 0:00:03]} 64. Kf5 {[%clk 0:00:06.2]} 64... Rb5+ {[%clk 0:00:02.3]}
65. Kf6 {[%clk 0:00:06.3]} 65... Rb6+ {[%clk 0:00:02.2]} 66. Kf5 {[%clk
0:00:06.7]} 66... Rb5+ {[%clk 0:00:02.5]} 67. Ke4 {[%clk 0:00:06.3]} 67... Rb6
{[%clk 0:00:03.4]} 68. Rh8+ {[%clk 0:00:06.3]} 68... Kg7 {[%clk 0:00:02.9]} 69.
Rd8 {[%clk 0:00:06.9]} 69... Rb4+ {[%clk 0:00:03.3]} 70. Kf5 {[%clk 0:00:06.3]}
70... Rb5+ {[%clk 0:00:03.5]} 71. Kg4 {[%clk 0:00:06.7]} 71... Rb6 {[%clk
0:00:03.7]} 72. Rxd2 {[%clk 0:00:06.2]} 1-0

[Event "Late-Titled-Tuesday-Blitz-December-26-2023"]
[Site "Chess.com"]
[Date "2023.12.26"]
[Round "2"]
[White "sakkikuska"]
[Black "APOKALIPSA13"]
[Result "1-0"]
[WhiteElo "2473"]
[BlackElo "2202"]
[TimeControl "180+1"]
[EndTime "14:19:19 PST"]
[Termination "sakkikuska won on time"]

1. e4 {[%clk 0:03:00.9]} 1... e5 {[%clk 0:03:00.9]} 2. Nf3 {[%clk 0:03:00.8]}
2... d5 {[%clk 0:03:01.2]} 3. exd5 {[%clk 0:02:59.1]} 3... e4 {[%clk 0:03:01.4]}
4. Qe2 {[%clk 0:02:59]} 4... Nf6 {[%clk 0:03:00.8]} 5. Nc3 {[%clk 0:02:53.1]}
5... Be7 {[%clk 0:02:57.9]} 6. Nxe4 {[%clk 0:02:49.5]} 6... O-O {[%clk 0:02:57]}
7. d3 {[%clk 0:02:38.8]} 7... Nxd5 {[%clk 0:02:54.9]} 8. c4 {[%clk 0:01:42.1]}
8... Bb4+ {[%clk 0:02:54]} 9. Bd2 {[%clk 0:01:41.7]} 9... Nf4 {[%clk 0:02:48.6]}
10. Qe3 {[%clk 0:01:41.8]} 10... Bxd2+ {[%clk 0:02:45]} 11. Qxd2 {[%clk
0:01:38.9]} 11... Ne6 {[%clk 0:02:42.6]} 12. Be2 {[%clk 0:01:32.8]} 12... Re8
{[%clk 0:02:40.1]} 13. O-O {[%clk 0:01:32.8]} 13... Nd4 {[%clk 0:02:36.9]} 14.
Nxd4 {[%clk 0:01:31.2]} 14... Qxd4 {[%clk 0:02:37.8]} 15. Bf3 {[%clk 0:01:24.9]}
15... Nc6 {[%clk 0:02:29.5]} 16. Rfe1 {[%clk 0:01:18.6]} 16... Bf5 {[%clk
0:01:24.8]} 17. Re3 {[%clk 0:01:09.5]} 17... Rad8 {[%clk 0:00:55.6]} 18. Rae1
{[%clk 0:01:05.7]} 18... Kf8 {[%clk 0:00:50.8]} 19. b4 {[%clk 0:00:44.6]} 19...
Bxe4 {[%clk 0:00:47.7]} 20. Bxe4 {[%clk 0:00:32]} 20... Qxc4 {[%clk 0:00:44.2]}
21. dxc4 {[%clk 0:00:21.1]} 21... Rxd2 {[%clk 0:00:42.9]} 22. a3 {[%clk
0:00:15.9]} 22... Nd4 {[%clk 0:00:41.2]} 23. h3 {[%clk 0:00:14.9]} 23... f5
{[%clk 0:00:40.8]} 24. Bxb7 {[%clk 0:00:14.9]} 24... Ne2+ {[%clk 0:00:38.2]} 25.
Kh2 {[%clk 0:00:13.3]} 25... Rxe3 {[%clk 0:00:33.1]} 26. fxe3 {[%clk 0:00:13.7]}
26... g6 {[%clk 0:00:29.8]} 27. Rf1 {[%clk 0:00:12.8]} 27... Ke7 {[%clk
0:00:28.1]} 28. Rf2 {[%clk 0:00:13.3]} 28... Rc2 {[%clk 0:00:23.9]} 29. e4
{[%clk 0:00:13.7]} 29... Nd4 {[%clk 0:00:21.8]} 30. Rxc2 {[%clk 0:00:13.1]}
30... Nxc2 {[%clk 0:00:22.7]} 31. exf5 {[%clk 0:00:13.6]} 31... gxf5 {[%clk
0:00:23.5]} 32. Kg3 {[%clk 0:00:13.1]} 32... Nxa3 {[%clk 0:00:22.7]} 33. Bd5
{[%clk 0:00:12.9]} 33... Kd6 {[%clk 0:00:20.6]} 34. Kf4 {[%clk 0:00:13.2]} 34...
c6 {[%clk 0:00:19.8]} 35. Bg8 {[%clk 0:00:12.1]} 35... Nc2 {[%clk 0:00:19]} 36.
Bxh7 {[%clk 0:00:12.3]} 36... Nxb4 {[%clk 0:00:19.2]} 37. Bxf5 {[%clk
0:00:12.6]} 37... Kc5 {[%clk 0:00:19.4]} 38. Be6 {[%clk 0:00:13.2]} 38... Nd3+
{[%clk 0:00:19.5]} 39. Ke3 {[%clk 0:00:13.1]} 39... Ne1 {[%clk 0:00:19.6]} 40.
g4 {[%clk 0:00:13.1]} 40... Ng2+ {[%clk 0:00:19.7]} 41. Kf3 {[%clk 0:00:13]}
41... Nh4+ {[%clk 0:00:20.6]} 42. Kf4 {[%clk 0:00:13.3]} 42... Ng6+ {[%clk
0:00:20.9]} 43. Ke4 {[%clk 0:00:13.8]} 43... Nf8 {[%clk 0:00:21.7]} 44. Bf7
{[%clk 0:00:13.7]} 44... Nd7 {[%clk 0:00:22.2]} 45. g5 {[%clk 0:00:14.3]} 45...
a5 {[%clk 0:00:22.1]} 46. g6 {[%clk 0:00:14.8]} 46... Nf6+ {[%clk 0:00:22.3]}
47. Kd3 {[%clk 0:00:15.1]} 47... Nh5 {[%clk 0:00:22.6]} 48. Kc3 {[%clk
0:00:14.6]} 48... a4 {[%clk 0:00:22.6]} 49. Be6 {[%clk 0:00:14.8]} 49... Ng7
{[%clk 0:00:22.5]} 50. Bg4 {[%clk 0:00:15.3]} 50... Kd6 {[%clk 0:00:21.9]} 51.
h4 {[%clk 0:00:15.7]} 51... c5 {[%clk 0:00:21.9]} 52. h5 {[%clk 0:00:16.2]}
52... Ke5 {[%clk 0:00:20.7]} 53. h6 {[%clk 0:00:16.6]} 53... Kf6 {[%clk
0:00:20.3]} 54. h7 {[%clk 0:00:16.5]} 54... Kxg6 {[%clk 0:00:19.8]} 55. h8=Q
{[%clk 0:00:16.6]} 55... Nf5 {[%clk 0:00:19.6]} 56. Qg8+ {[%clk 0:00:16.5]}
56... Ng7 {[%clk 0:00:18.4]} 57. Qd5 {[%clk 0:00:16.7]} 57... a3 {[%clk
0:00:18]} 58. Qxc5 {[%clk 0:00:16.9]} 58... a2 {[%clk 0:00:17.9]} 59. Qb6+
{[%clk 0:00:17.5]} 59... Kg5 {[%clk 0:00:18]} 60. Qa5+ {[%clk 0:00:17.5]} 60...
Kxg4 {[%clk 0:00:17.9]} 61. Qxa2 {[%clk 0:00:18.2]} 61... Nf5 {[%clk 0:00:18.7]}
62. Qg2+ {[%clk 0:00:18.6]} 62... Kf4 {[%clk 0:00:19.1]} 63. Qf2+ {[%clk
0:00:18.8]} 63... Ke5 {[%clk 0:00:18.9]} 64. Kb4 {[%clk 0:00:18.9]} 64... Nd4
{[%clk 0:00:18.6]} 65. Kc5 {[%clk 0:00:18.1]} 65... Ne6+ {[%clk 0:00:18.5]} 66.
Kb6 {[%clk 0:00:18.4]} 66... Ng5 {[%clk 0:00:17.7]} 67. Qe3+ {[%clk 0:00:18.8]}
67... Ne4 {[%clk 0:00:18.6]} 68. Qxe4+ {[%clk 0:00:18.9]} 68... Kxe4 {[%clk
0:00:18.8]} 69. c5 {[%clk 0:00:19.8]} 69... Kd5 {[%clk 0:00:19]} 70. c6 {[%clk
0:00:20.7]} 70... Kd6 {[%clk 0:00:03.9]} 71. c7 {[%clk 0:00:21.3]} 71... Kd7
{[%clk 0:00:04]} 72. Kb7 {[%clk 0:00:22.2]} 72... Ke8 {[%clk 0:00:03.3]} 73.
c8=Q+ {[%clk 0:00:23.1]} 1-0

[Event "Late-Titled-Tuesday-Blitz-December-26-2023"]
[Site "Chess.com"]
[Date "2023.12.26"]
[Round "2"]
[White "Vladimir_Zakhartsov"]
[Black "robertoalejandro10"]
[Result "1-0"]
[WhiteElo "2876"]
[BlackElo "2552"]
[TimeControl "180+1"]
[EndTime "14:19:21 PST"]
[Termination "Vladimir_Zakhartsov won by resignation"]

1. e4 {[%clk 0:02:15.7]} 1... c5 {[%clk 0:02:58.2]} 2. Nf3 {[%clk 0:02:15.7]}
2... g6 {[%clk 0:02:57.8]} 3. d4 {[%clk 0:02:13.1]} 3... cxd4 {[%clk 0:02:58.7]}
4. Qxd4 {[%clk 0:02:13.6]} 4... Nf6 {[%clk 0:02:55.9]} 5. Bb5 {[%clk 0:02:14.1]}
5... a6 {[%clk 0:02:54]} 6. e5 {[%clk 0:02:14.5]} 6... axb5 {[%clk 0:02:54.5]}
7. exf6 {[%clk 0:02:14.8]} 7... Nc6 {[%clk 0:02:54.2]} 8. fxe7 {[%clk
0:02:14.4]} 8... Qxe7+ {[%clk 0:02:53]} 9. Qe3 {[%clk 0:02:15.1]} 9... Qxe3+
{[%clk 0:02:18.6]} 10. Bxe3 {[%clk 0:02:16]} 10... b4 {[%clk 0:02:14.8]} 11.
Nbd2 {[%clk 0:02:02.1]} 11... Bg7 {[%clk 0:02:12.5]} 12. Nc4 {[%clk 0:02:01.7]}
12... d5 {[%clk 0:02:02.4]} 13. Nd6+ {[%clk 0:01:46.2]} 13... Kd7 {[%clk
0:01:58.7]} 14. Nxc8 {[%clk 0:01:41.9]} 14... Rhxc8 {[%clk 0:01:57.8]} 15. Bc1
{[%clk 0:01:20.2]} 15... Nd4 {[%clk 0:01:44]} 16. Nxd4 {[%clk 0:01:16.7]} 16...
Bxd4 {[%clk 0:01:44.9]} 17. Kd1 {[%clk 0:01:17.3]} 17... f5 {[%clk 0:01:31.3]}
18. f3 {[%clk 0:01:14.3]} 18... Rc6 {[%clk 0:01:31.1]} 19. Re1 {[%clk
0:01:13.5]} 19... Rca6 {[%clk 0:00:48.9]} 20. a3 {[%clk 0:01:10.8]} 20... Bc5
{[%clk 0:00:48.7]} 21. Rb1 {[%clk 0:01:08.6]} 21... Rc6 {[%clk 0:00:21.4]} 22.
axb4 {[%clk 0:01:02.1]} 22... Bxb4 {[%clk 0:00:22.3]} 23. Re2 {[%clk 0:00:58.9]}
23... Bd6 {[%clk 0:00:22]} 24. h3 {[%clk 0:00:57.9]} 24... Bg3 {[%clk
0:00:20.2]} 25. Be3 {[%clk 0:00:57.4]} 25... Re8 {[%clk 0:00:19.2]} 26. Bd2
{[%clk 0:00:35.1]} 26... Rxe2 {[%clk 0:00:16.8]} 27. Kxe2 {[%clk 0:00:36]} 27...
Rxc2 {[%clk 0:00:17.1]} 28. Kd3 {[%clk 0:00:36.8]} 28... Rc6 {[%clk 0:00:16.6]}
29. Ra1 {[%clk 0:00:32.9]} 29... Be5 {[%clk 0:00:16]} 30. Ra2 {[%clk 0:00:32.1]}
30... Rb6 {[%clk 0:00:16]} 31. Kc2 {[%clk 0:00:32.1]} 31... Kc6 {[%clk
0:00:15.9]} 32. b3 {[%clk 0:00:32.2]} 32... Kd7 {[%clk 0:00:15]} 33. Ra8 {[%clk
0:00:31.8]} 33... Rc6+ {[%clk 0:00:14.6]} 34. Kd3 {[%clk 0:00:32.3]} 34... Rb6
{[%clk 0:00:14]} 35. Kc2 {[%clk 0:00:32.6]} 35... Ra6 {[%clk 0:00:13.9]} 36. Rf8
{[%clk 0:00:30.1]} 36... Ke7 {[%clk 0:00:13.4]} 37. Rg8 {[%clk 0:00:27.7]} 37...
Ra2+ {[%clk 0:00:11.6]} 38. Kd3 {[%clk 0:00:28]} 38... Rb2 {[%clk 0:00:10.3]}
39. b4 {[%clk 0:00:27]} 39... Rb3+ {[%clk 0:00:10]} 40. Kc2 {[%clk 0:00:26.3]}
40... Rb2+ {[%clk 0:00:10.1]} 41. Kd3 {[%clk 0:00:26.7]} 41... Rb1 {[%clk
0:00:09.2]} 42. f4 {[%clk 0:00:20.3]} 42... Bd6 {[%clk 0:00:04.6]} 43. Rg7+
{[%clk 0:00:20.4]} 43... Ke6 {[%clk 0:00:05.1]} 44. Rxh7 {[%clk 0:00:16.2]}
44... Rg1 {[%clk 0:00:05.1]} 45. Rxb7 {[%clk 0:00:13.4]} 45... Rxg2 {[%clk
0:00:05.4]} 46. b5 {[%clk 0:00:13.8]} 46... Rg3+ {[%clk 0:00:05.7]} 47. Kd4
{[%clk 0:00:13.8]} 47... Rxh3 {[%clk 0:00:02.9]} 48. Rb6 {[%clk 0:00:14.2]}
48... Rb3 {[%clk 0:00:02.6]} 49. Rb7 {[%clk 0:00:11.4]} 49... Be7 {[%clk
0:00:02.2]} 50. b6 {[%clk 0:00:08.5]} 50... Rb2 {[%clk 0:00:02.6]} 51. Kd3
{[%clk 0:00:06.5]} 51... Rb5 {[%clk 0:00:03.1]} 52. Be3 {[%clk 0:00:06.7]} 52...
Bd6 {[%clk 0:00:02.1]} 53. Rg7 {[%clk 0:00:06.3]} 53... Rb3+ {[%clk 0:00:02.4]}
54. Ke2 {[%clk 0:00:05.5]} 54... Rb2+ {[%clk 0:00:02.7]} 55. Kf3 {[%clk
0:00:04.7]} 55... Rb3 {[%clk 0:00:03.6]} 56. Rxg6+ {[%clk 0:00:03.2]} 56... Kd7
{[%clk 0:00:04.5]} 57. Ke2 {[%clk 0:00:03.5]} 57... Rb2+ {[%clk 0:00:03.8]} 58.
Kd3 {[%clk 0:00:03.7]} 58... Rb3+ {[%clk 0:00:04.7]} 59. Kd4 {[%clk 0:00:03.7]}
59... Rb4+ {[%clk 0:00:04.7]} 60. Kxd5 {[%clk 0:00:03.8]} 60... Rb5+ {[%clk
0:00:04.9]} 61. Kc4 {[%clk 0:00:04.2]} 61... Rb4+ {[%clk 0:00:05.3]} 62. Kc3
{[%clk 0:00:04.6]} 62... Re4 {[%clk 0:00:05.5]} 63. Kd3 {[%clk 0:00:03.6]} 63...
Kc6 {[%clk 0:00:05.3]} 64. Bd4 {[%clk 0:00:03.5]} 64... Re1 {[%clk 0:00:05.2]}
65. Be5 {[%clk 0:00:03.4]} 65... Rd1+ {[%clk 0:00:05.7]} 66. Ke2 {[%clk
0:00:03.7]} 66... Rd5 {[%clk 0:00:05.1]} 67. b7 {[%clk 0:00:04.2]} 67... Kxb7
{[%clk 0:00:03.7]} 68. Rxd6 {[%clk 0:00:04.6]} 68... Ra5 {[%clk 0:00:03.5]} 69.
Rf6 {[%clk 0:00:05.2]} 69... Kc8 {[%clk 0:00:03.2]} 70. Rxf5 {[%clk 0:00:05.2]}
70... Kd7 {[%clk 0:00:04.1]} 71. Rf6 {[%clk 0:00:05.8]} 71... Ke7 {[%clk
0:00:04.4]} 72. Kf3 {[%clk 0:00:06.2]} 72... Ra3+ {[%clk 0:00:04.6]} 73. Kg4
{[%clk 0:00:06.7]} 73... Ra1 {[%clk 0:00:05.5]} 74. Kf5 {[%clk 0:00:07.2]} 74...
Rf1 {[%clk 0:00:05.5]} 75. Ra6 {[%clk 0:00:07.2]} 75... Kf7 {[%clk 0:00:06.4]}
76. Ra7+ {[%clk 0:00:07.6]} 76... Ke8 {[%clk 0:00:07.2]} 77. Ke6 {[%clk
0:00:08]} 77... Ra1 {[%clk 0:00:07.1]} 78. Rxa1 {[%clk 0:00:07.7]} 1-0